fUSD/lending_fUSD_20260703
["ID","MTS","AMOUNT","RATE_DAILY","PERIOD"]
[426925378,1783019384000,-154.73099648,0.000144,2]
[426925379,1783019384000,-757.66488139,0.00014602,2]
[426925381,1783019384000,-369.38420044,0.00014847,2]
[426925380,1783019384000,-600.0,0.00014811,2]
[426925384,1783019384000,-477.02201879,0.00014989,2]
[426925383,1783019384000,-150.0,0.00014952,2]
[426925385,1783019384000,-22.97798121,0.00014989,2]
[426925382,1783019384000,-600.0,0.00014879,2]
[426925386,1783019384000,-211.96889291,0.00014999,2]
[426925394,1783019431000,-151.0,0.00016908,2]
[426925392,1783019431000,-174.92,0.00016602,2]
[426925388,1783019431000,-150.0,0.000151,2]
[426925396,1783019431000,-151.0,0.00016908,2]
[426925395,1783019431000,-151.0,0.00016908,2]
[426925389,1783019431000,-502.0,0.0001611,2]
[426925387,1783019431000,-250.0,0.0001505,2]
[426925390,1783019431000,-600.0,0.00016285,2]
[426925391,1783019431000,-250.0,0.00016499,2]
[426925393,1783019431000,-153.0,0.00016712,2]
[426925399,1783019431000,-806.65,0.000174,2]
[426925407,1783019431000,-720.35583608,0.000184,2]
[426925398,1783019431000,-3224.74625394,0.00017363,2]
[426925401,1783019431000,-150.0,0.0001755,2]
[426925402,1783019431000,-200.0,0.0001782,2]
[426925400,1783019431000,-170.65,0.00017422,2]
[426925405,1783019431000,-1628.83,0.0001831,2]
[426925404,1783019431000,-274.16,0.00018204,2]
[426925403,1783019431000,-2686.65,0.00017936,2]
[426925406,1783019431000,-408.33754778,0.000184,2]
[426925408,1783019431000,-1077.60924913,0.000184,2]
[426925397,1783019431000,-15379.36982221,0.00017363,2]
[426925435,1783019432000,-500.0,0.00019852,2]
[426925440,1783019432000,-515.0,0.00019852,2]
[426925426,1783019432000,-500.0,0.00019852,2]
[426925438,1783019432000,-500.0,0.00019852,2]
[426925433,1783019432000,-500.0,0.00019852,2]
[426925427,1783019432000,-500.0,0.00019852,2]
[426925431,1783019432000,-500.0,0.00019852,2]
[426925429,1783019432000,-500.0,0.00019852,2]
[426925437,1783019432000,-500.0,0.00019852,2]
[426925441,1783019432000,-500.0,0.00019852,2]
[426925439,1783019432000,-500.0,0.00019852,2]
[426925425,1783019432000,-500.0,0.00019852,2]
[426925411,1783019432000,-225.51,0.00018677,2]
[426925421,1783019432000,-500.0,0.00019852,2]
[426925419,1783019432000,-214.38272344,0.00019852,2]
[426925410,1783019432000,-156.9,0.00018629,2]
[426925414,1783019432000,-428.0,0.00019764,2]
[426925416,1783019432000,-25342.58921642,0.00019792,2]
[426925417,1783019432000,-500.0,0.00019852,2]
[426925442,1783019432000,-500.0,0.00019852,2]
[426925413,1783019432000,-1007.69429225,0.00019602,2]
[426925412,1783019432000,-510.48722197,0.00019334,2]
[426925415,1783019432000,-3305.62079265,0.00019792,2]
[426925409,1783019432000,-1458.0423,0.000184,2]
[426925423,1783019432000,-500.0,0.00019852,2]
[426925452,1783019432000,-500.0,0.00019852,2]
[426925466,1783019432000,-500.0,0.00019864,2]
[426925449,1783019432000,-583.3753588,0.00019852,2]
[426925445,1783019432000,-500.0,0.00019852,2]
[426925469,1783019432000,-501.93,0.00019865,2]
[426925470,1783019432000,-773.82015862,0.00019865,2]
[426925468,1783019432000,-140289.74976012,0.00019865,2]
[426925467,1783019432000,-182.90061305,0.00019864,2]
[426925465,1783019432000,-500.0,0.00019864,2]
[426925460,1783019432000,-500.0,0.00019852,2]
[426925464,1783019432000,-13456.73996325,0.00019863,2]
[426925458,1783019432000,-500.0,0.00019852,2]
[426925463,1783019432000,-75852.09836261,0.00019853,2]
[426925455,1783019432000,-500.0,0.00019852,2]
[426925462,1783019432000,-625.10325191,0.00019852,2]
[426925471,1783019432000,-15928.59686654,0.00019865,2]
[426925461,1783019432000,-500.0,0.00019852,2]
[426925454,1783019432000,-500.0,0.00019852,2]
[426925459,1783019432000,-500.0,0.00019852,2]
[426925443,1783019432000,-500.0,0.00019852,2]
[426925446,1783019432000,-500.0,0.00019852,2]
[426925444,1783019432000,-500.0,0.00019852,2]
[426925453,1783019432000,-500.0,0.00019852,2]
[426925448,1783019432000,-500.0,0.00019852,2]
[426925447,1783019432000,-500.0,0.00019852,2]
[426925450,1783019432000,-500.0,0.00019852,2]
[426925456,1783019432000,-500.0,0.00019852,2]
[426925457,1783019432000,-500.0,0.00019852,2]
[426925451,1783019432000,-500.0,0.00019852,2]
[426925503,1783019438000,-151.0,0.00021999,2]
[426925510,1783019438000,-1138.45643977,0.000227,2]
[426925502,1783019438000,-13194.31349685,0.00021981,2]
[426925504,1783019438000,-151.0,0.00021999,2]
[426925506,1783019438000,-412.81841458,0.00022412,2]
[426925507,1783019438000,-170.58,0.00022595,2]
[426925508,1783019438000,-154.05359121,0.00022599,5]
[426925505,1783019438000,-1963.65,0.00022224,2]
[426925511,1783019438000,-1253.44683968,0.000227,2]
[426925513,1783019438000,-1425.16600244,0.000227,2]
[426925520,1783019438000,-225.53895044,0.00022994,2]
[426925516,1783019438000,-216.69616408,0.00022743,2]
[426925515,1783019438000,-160.0,0.00022743,2]
[426925517,1783019438000,-160.0,0.00022743,2]
[426925512,1783019438000,-10691.53464968,0.000227,2]
[426925519,1783019438000,-500.0,0.00022994,2]
[426925518,1783019438000,-166.83,0.00022923,2]
[426925521,1783019438000,-500.0,0.00022994,2]
[426925522,1783019438000,-500.0,0.00022994,2]
[426925524,1783019438000,-500.0,0.00022994,2]
[426925501,1783019438000,-150.0,0.00021918,2]
[426925514,1783019438000,-160.0,0.00022743,2]
[426925499,1783019438000,-1963.65,0.00021719,2]
[426925485,1783019438000,-10201.1926559,0.000205,2]
[426925498,1783019438000,-25342.58921637,0.00021678,2]
[426925477,1783019438000,-150.0,0.00019892,2]
[426925481,1783019438000,-175.84951452,0.00020138,2]
[426925479,1783019438000,-3717.41,0.00019943,2]
[426925476,1783019438000,-167256.48321472,0.00019865,2]
[426925482,1783019438000,-1963.65,0.00020204,2]
[426925478,1783019438000,-190.95,0.00019929,2]
[426925480,1783019438000,-1500.0,0.0001995,2]
[426925483,1783019438000,-500.0,0.00020451,2]
[426925484,1783019438000,-16813.01895879,0.00020486,2]
[426925486,1783019438000,-186.15,0.00020555,2]
[426925500,1783019438000,-5000.0,0.00021918,2]
[426925487,1783019438000,-603.01,0.00020559,2]
[426925489,1783019438000,-1963.65,0.00020709,2]
[426925490,1783019438000,-1309.33,0.00020817,2]
[426925488,1783019438000,-1852.42,0.00020579,2]
[426925496,1783019438000,-403.7430889,0.00021399,2]
[426925497,1783019438000,-3305.62079256,0.00021678,2]
[426925491,1783019438000,-2136.08,0.00020912,2]
[426925494,1783019438000,-166.83,0.00021176,2]
[426925493,1783019438000,-150.0,0.00021001,2]
[426925492,1783019438000,-210.28917335,0.00020956,2]
[426925495,1783019438000,-1963.65,0.00021214,2]
[426925523,1783019438000,-500.0,0.00022994,2]
[426925525,1783019438000,-577.72670713,0.00022994,2]
[426925509,1783019438000,-1056.59,0.00022658,2]
[426925527,1783019438000,-500.0,0.00022994,2]
[426925555,1783019438000,-190.0,0.00024,2]
[426925557,1783019438000,-151.0,0.00024,2]
[426925556,1783019438000,-333.0,0.00024,2]
[426925559,1783019438000,-439.0,0.00024,7]
[426925558,1783019438000,-286.0,0.00024,2]
[426925567,1783019438000,-9047.39,0.00024174,2]
[426925562,1783019438000,-1253.44683968,0.000241,2]
[426925566,1783019438000,-425.47,0.00024174,2]
[426925564,1783019438000,-1425.16600244,0.000241,2]
[426925561,1783019438000,-157.0,0.00024,2]
[426925554,1783019438000,-158.0,0.00024,2]
[426925563,1783019438000,-10691.53464968,0.000241,2]
[426925569,1783019438000,-1253.44683968,0.000244,2]
[426925568,1783019438000,-155.10164762,0.00024397,2]
[426925571,1783019438000,-1425.16600244,0.000244,2]
[426925570,1783019438000,-10691.53464968,0.000244,2]
[426925572,1783019438000,-26414.9767,0.000245,2]
[426925573,1783019438000,-2000.0,0.000245,2]
[426925575,1783019438000,-10691.53464968,0.000246,2]
[426925574,1783019438000,-1253.44683968,0.000246,2]
[426925576,1783019438000,-1425.16600244,0.000246,2]
[426925529,1783019438000,-288.03110709,0.00022994,2]
[426925560,1783019438000,-319.0,0.00024,2]
[426925553,1783019438000,-155.0,0.00024,2]
[426925565,1783019438000,-150.0,0.00024164,2]
[426925549,1783019438000,-1253.44683968,0.000239,2]
[426925526,1783019438000,-500.0,0.00022994,2]
[426925550,1783019438000,-10691.53464968,0.000239,2]
[426925528,1783019438000,-500.0,0.00022994,2]
[426925531,1783019438000,-1253.44683968,0.00023,2]
[426925530,1783019438000,-1138.45643977,0.00023,2]
[426925532,1783019438000,-10691.53464968,0.00023,2]
[426925534,1783019438000,-150.0,0.00023014,2]
[426925536,1783019438000,-1253.44683968,0.000232,2]
[426925535,1783019438000,-1138.45643977,0.000232,2]
[426925538,1783019438000,-1425.16600244,0.000232,2]
[426925537,1783019438000,-10691.53464968,0.000232,2]
[426925533,1783019438000,-1425.16600244,0.00023,2]
[426925544,1783019438000,-25342.58921637,0.00023565,2]
[426925542,1783019438000,-1425.16600244,0.000234,2]
[426925541,1783019438000,-10691.53464968,0.000234,2]
[426925543,1783019438000,-3305.62079256,0.00023565,2]
[426925540,1783019438000,-1253.44683968,0.000234,2]
[426925545,1783019438000,-1138.45643977,0.000237,2]
[426925546,1783019438000,-1253.44683968,0.000237,2]
[426925551,1783019438000,-1425.16600244,0.000239,2]
[426925548,1783019438000,-1425.16600244,0.000237,2]
[426925547,1783019438000,-10691.53464968,0.000237,2]
[426925539,1783019438000,-1138.45643977,0.000234,2]
[426925552,1783019438000,-1786.64,0.00024,2]
[426925617,1783019439000,-158.0,0.00026,2]
[426925616,1783019439000,-10691.53464968,0.000259,2]
[426925610,1783019439000,-6126.95,0.00025786,2]
[426925618,1783019439000,-190.0,0.00026,2]
[426925619,1783019439000,-333.0,0.00026,2]
[426925615,1783019439000,-4982.85,0.00025786,2]
[426925614,1783019439000,-9999.99,0.00025786,2]
[426925609,1783019439000,-299.99,0.00025786,12]
[426925613,1783019439000,-150.99,0.00025786,2]
[426925612,1783019439000,-5545.32,0.00025786,2]
[426925621,1783019439000,-319.0,0.00026,2]
[426925611,1783019439000,-505.1,0.00025786,2]
[426925620,1783019439000,-286.0,0.00026,2]
[426925638,1783019439000,-168.07228002,0.00026365,2]
[426925624,1783019439000,-678.0,0.00026182,5]
[426925623,1783019439000,-170.65,0.00026132,2]
[426925625,1783019439000,-679.0,0.00026197,5]
[426925622,1783019439000,-150.0,0.00026038,5]
[426925627,1783019439000,-150.55664134,0.00026214,2]
[426925628,1783019439000,-683.0,0.00026233,5]
[426925630,1783019439000,-163.23581734,0.00026275,2]
[426925629,1783019439000,-663.0,0.00026256,5]
[426925631,1783019439000,-197.7100316,0.00026275,2]
[426925632,1783019439000,-217.28938057,0.00026275,2]
[426925636,1783019439000,-688.0,0.00026343,5]
[426925637,1783019439000,-159.77823144,0.00026365,2]
[426925608,1783019439000,-9999.99,0.00025786,2]
[426925626,1783019439000,-675.0,0.00026214,5]
[426925607,1783019439000,-499.99,0.00025786,2]
[426925583,1783019439000,-164.61468301,0.00025,2]
[426925606,1783019439000,-3010.31,0.00025786,2]
[426925579,1783019439000,-166.83,0.00024671,2]
[426925577,1783019439000,-1257.72370311,0.00024602,2]
[426925578,1783019439000,-169.71,0.00024658,2]
[426925581,1783019439000,-10691.53464968,0.000249,2]
[426925580,1783019439000,-1253.44683968,0.000249,2]
[426925586,1783019439000,-333.0,0.00025,2]
[426925634,1783019439000,-662.0,0.00026282,5]
[426925591,1783019439000,-10691.53464968,0.000251,2]
[426925589,1783019439000,-319.0,0.00025,2]
[426925590,1783019439000,-157.0,0.00025,2]
[426925584,1783019439000,-158.0,0.00025,2]
[426925582,1783019439000,-1425.16600244,0.000249,2]
[426925585,1783019439000,-190.0,0.00025,2]
[426925605,1783019439000,-617.26,0.00025786,2]
[426925588,1783019439000,-286.0,0.00025,2]
[426925593,1783019439000,-475.40889693,0.00025319,2]
[426925592,1783019439000,-2686.65,0.0002511,2]
[426925595,1783019439000,-4414.3671512,0.00025348,2]
[426925596,1783019439000,-3526.1743181,0.00025348,2]
[426925602,1783019439000,-25342.58921637,0.00025451,2]
[426925598,1783019439000,-150.0,0.00025373,2]
[426925599,1783019439000,-10691.53464968,0.000254,2]
[426925597,1783019439000,-168.9261018,0.00025348,2]
[426925594,1783019439000,-1681.6552373,0.00025348,2]
[426925601,1783019439000,-3305.62079256,0.00025451,2]
[426925600,1783019439000,-170.58,0.00025419,2]
[426925604,1783019439000,-10691.53464968,0.000256,2]
[426925603,1783019439000,-242.0,0.0002552,2]
[426925587,1783019439000,-151.0,0.00025,2]
[426925635,1783019439000,-681.0,0.00026311,5]
[426925693,1783019439000,-1000.0,0.00027397,2]
[426925640,1783019439000,-271.93351834,0.00026413,5]
[426925672,1783019439000,-204.00480717,0.00027205,2]
[426925673,1783019439000,-229.11179949,0.00027205,2]
[426925677,1783019439000,-319.55646287,0.00027205,2]
[426925676,1783019439000,-237.71320758,0.00027205,2]
[426925675,1783019439000,-243.35455106,0.00027205,2]
[426925674,1783019439000,-298.23253252,0.00027205,2]
[426925680,1783019439000,-240.78065107,0.00027205,2]
[426925679,1783019439000,-266.0962097,0.00027205,2]
[426925682,1783019439000,-238.05304227,0.00027205,2]
[426925692,1783019439000,-248.65900921,0.00027397,2]
[426925681,1783019439000,-231.28592554,0.00027205,2]
[426925690,1783019439000,-3305.62079256,0.00027338,2]
[426925691,1783019439000,-25342.58921637,0.00027338,2]
[426925669,1783019439000,-204.12687834,0.00027113,2]
[426925686,1783019439000,-336.14456003,0.00027205,2]
[426925683,1783019439000,-274.84337279,0.00027205,2]
[426925689,1783019439000,-237.18007815,0.00027211,2]
[426925687,1783019439000,-236.33725986,0.00027205,2]
[426925688,1783019439000,-203.38720443,0.00027205,2]
[426925694,1783019439000,-1000.0,0.00027397,2]
[426925696,1783019439000,-1500.0,0.00027397,2]
[426925695,1783019439000,-1000.0,0.00027397,2]
[426925698,1783019439000,-151.0,0.00027397,5]
[426925699,1783019439000,-150.0,0.00027397,5]
[426925697,1783019439000,-151.0,0.00027397,5]
[426925701,1783019439000,-675.0,0.00027397,5]
[426925700,1783019439000,-151.0,0.00027397,5]
[426925639,1783019439000,-681.0,0.00026392,5]
[426925684,1783019439000,-246.49510084,0.00027205,2]
[426925670,1783019439000,-278.29491872,0.00027113,2]
[426925685,1783019439000,-256.9106286,0.00027205,2]
[426925667,1783019439000,-165.80853823,0.00027113,2]
[426925671,1783019439000,-182.57160771,0.00027113,2]
[426925646,1783019439000,-669.0,0.00026717,5]
[426925645,1783019439000,-282.54659747,0.0002666,2]
[426925651,1783019439000,-333.0,0.00027,2]
[426925644,1783019439000,-570.0,0.00026654,5]
[426925648,1783019439000,-216.69616408,0.00027,3]
[426925643,1783019439000,-150.0,0.00026641,2]
[426925647,1783019439000,-152.0,0.00026879,3]
[426925649,1783019439000,-158.0,0.00027,2]
[426925642,1783019439000,-663.0,0.00026554,5]
[426925650,1783019439000,-190.0,0.00027,2]
[426925652,1783019439000,-286.0,0.00027,2]
[426925653,1783019439000,-319.0,0.00027,2]
[426925654,1783019439000,-155.10164761,0.00027024,2]
[426925641,1783019439000,-666.0,0.00026453,5]
[426925656,1783019439000,-267.1823205,0.00027051,2]
[426925658,1783019439000,-251.0,0.0002708,5]
[426925668,1783019439000,-289.36748961,0.00027113,2]
[426925665,1783019439000,-245.773396,0.00027113,2]
[426925666,1783019439000,-172.90060135,0.00027113,2]
[426925664,1783019439000,-234.48703214,0.00027113,2]
[426925660,1783019439000,-395.42006319,0.00027113,2]
[426925678,1783019439000,-466.58855271,0.00027205,2]
[426925661,1783019439000,-218.12230523,0.00027113,2]
[426925662,1783019439000,-434.57876115,0.00027113,2]
[426925657,1783019439000,-301.11328267,0.00027051,2]
[426925659,1783019439000,-326.47163468,0.00027113,2]
[426925655,1783019439000,-150.27051158,0.00027051,2]
[426925663,1783019439000,-289.31482526,0.00027113,2]
[426925749,1783019440000,-319.34969158,0.00027672,2]
[426925746,1783019440000,-365.14321542,0.00027672,2]
[426925745,1783019440000,-424.40319282,0.00027672,2]
[426925743,1783019440000,-578.73497922,0.00027672,2]
[426925740,1783019440000,-164.22257492,0.00027672,2]
[426925744,1783019440000,-556.58983744,0.00027672,2]
[426925741,1783019440000,-337.99518773,0.00027672,2]
[426925742,1783019440000,-408.25375667,0.00027672,2]
[426925737,1783019440000,-325.43844565,0.00027672,2]
[426925739,1783019440000,-400.86041671,0.00027672,2]
[426925734,1783019440000,-718.76917947,0.00027672,2]
[426925748,1783019440000,-331.61707646,0.00027672,2]
[426925738,1783019440000,-491.54679201,0.00027672,2]
[426925747,1783019440000,-345.80120271,0.00027672,2]
[426925753,1783019440000,-458.22359898,0.00027765,2]
[426925754,1783019440000,-230.10383159,0.00027765,2]
[426925750,1783019440000,-376.52,0.00027727,7]
[426925751,1783019440000,-330.85889679,0.00027765,2]
[426925755,1783019440000,-596.46506503,0.00027765,2]
[426925756,1783019440000,-339.49352847,0.00027765,2]
[426925758,1783019440000,-208.00779828,0.00027765,2]
[426925757,1783019440000,-486.70910211,0.00027765,2]
[426925760,1783019440000,-378.48168533,0.00027765,2]
[426925759,1783019440000,-239.58861894,0.00027765,2]
[426925761,1783019440000,-475.42641515,0.00027765,2]
[426925762,1783019440000,-479.33469431,0.00027765,2]
[426925765,1783019440000,-462.57185109,0.00027765,2]
[426925735,1783019440000,-239.94227655,0.00027672,2]
[426925752,1783019440000,-408.00961433,0.00027765,2]
[426925736,1783019440000,-468.97406428,0.00027672,2]
[426925704,1783019440000,-152.0,0.00027397,5]
[426925732,1783019440000,-181.8222043,0.00027672,2]
[426925767,1783019440000,-476.10608454,0.00027765,2]
[426925703,1783019440000,-688.0,0.00027397,5]
[426925705,1783019440000,-1067.58406073,0.00027397,5]
[426925706,1783019440000,-151.0,0.00027397,5]
[426925708,1783019440000,-300.0,0.00027397,2]
[426925707,1783019440000,-668.0,0.00027397,5]
[426925709,1783019440000,-7404.71,0.00027397,10]
[426925711,1783019440000,-205.43008531,0.00027397,2]
[426925712,1783019440000,-239.58972649,0.00027397,2]
[426925710,1783019440000,-6170.59,0.00027397,10]
[426925713,1783019440000,-479.17945298,0.00027397,2]
[426925714,1783019440000,-216.69616408,0.000274,10]
[426925716,1783019440000,-236.22,0.000274,2]
[426925715,1783019440000,-236.22,0.000274,2]
[426925718,1783019440000,-236.22,0.000274,2]
[426925717,1783019440000,-236.22,0.000274,2]
[426925719,1783019440000,-236.22,0.000274,2]
[426925720,1783019440000,-376.52,0.00027568,30]
[426925721,1783019440000,-300.54102316,0.00027609,2]
[426925725,1783019440000,-162.74,0.00027618,30]
[426925723,1783019440000,-534.364641,0.00027609,2]
[426925724,1783019440000,-451.66992401,0.00027609,2]
[426925730,1783019440000,-651.86814172,0.00027672,2]
[426925726,1783019440000,-165.70153143,0.00027665,2]
[426925728,1783019440000,-593.13009479,0.00027672,2]
[426925727,1783019440000,-489.70745202,0.00027672,2]
[426925729,1783019440000,-436.24461047,0.00027672,2]
[426925722,1783019440000,-230.48162992,0.00027609,2]
[426925731,1783019440000,-410.86017061,0.00027672,2]
[426925733,1783019440000,-578.62965052,0.00027672,2]
[426925763,1783019440000,-532.19241939,0.00027765,2]
[426925702,1783019440000,-153.0,0.00027397,5]
[426925766,1783019440000,-203.55116765,0.00027765,2]
[426925815,1783019440000,-2425.59341701,0.000284,2]
[426925808,1783019440000,-500.0,0.00028299,60]
[426925812,1783019440000,-2425.59341701,0.000284,2]
[426925810,1783019440000,-376.52,0.00028363,2]
[426925807,1783019440000,-600.0,0.00028299,2]
[426925811,1783019440000,-2425.59341709,0.000284,2]
[426925814,1783019440000,-2425.59341701,0.000284,2]
[426925817,1783019440000,-2425.59341701,0.000284,2]
[426925818,1783019440000,-2425.59341701,0.000284,2]
[426925820,1783019440000,-2425.59341701,0.000284,2]
[426925830,1783019440000,-353.96963846,0.000284,2]
[426925821,1783019440000,-353.96963848,0.000284,2]
[426925819,1783019440000,-2425.59341701,0.000284,2]
[426925824,1783019440000,-353.96963846,0.000284,2]
[426925829,1783019440000,-353.96963846,0.000284,2]
[426925825,1783019440000,-353.96963846,0.000284,2]
[426925822,1783019440000,-353.96963846,0.000284,2]
[426925826,1783019440000,-353.96963846,0.000284,2]
[426925823,1783019440000,-353.96963846,0.000284,2]
[426925828,1783019440000,-353.96963846,0.000284,2]
[426925827,1783019440000,-353.96963846,0.000284,2]
[426925831,1783019440000,-376.52,0.00028522,30]
[426925832,1783019440000,-376.52,0.00028681,7]
[426925834,1783019440000,-152.0,0.00029,5]
[426925835,1783019440000,-299.0,0.00029,5]
[426925838,1783019440000,-345.0,0.00029,2]
[426925836,1783019440000,-376.53,0.00029,30]
[426925833,1783019440000,-376.52,0.0002884,2]
[426925764,1783019440000,-481.56130214,0.00027765,2]
[426925809,1783019440000,-1000.0,0.00028315,2]
[426925813,1783019440000,-2425.59341701,0.000284,2]
[426925837,1783019440000,-190.0,0.00029,2]
[426925816,1783019440000,-2425.59341701,0.000284,2]
[426925768,1783019440000,-228.34329624,0.00027765,2]
[426925770,1783019440000,-549.68674559,0.00027765,2]
[426925769,1783019440000,-448.07683969,0.00027765,2]
[426925782,1783019440000,-482.0,0.0002784,2]
[426925771,1783019440000,-212.93692286,0.00027765,2]
[426925772,1783019440000,-319.54920007,0.00027765,2]
[426925776,1783019440000,-472.67451971,0.00027765,2]
[426925777,1783019440000,-504.21684005,0.00027765,2]
[426925805,1783019440000,-170.58,0.00028243,2]
[426925775,1783019440000,-513.82125721,0.00027765,2]
[426925773,1783019440000,-249.79238317,0.00027765,2]
[426925778,1783019440000,-406.77440886,0.00027765,2]
[426925781,1783019440000,-307.83283524,0.00027765,2]
[426925779,1783019440000,-309.9445006,0.00027765,2]
[426925780,1783019440000,-291.09586794,0.00027765,2]
[426925774,1783019440000,-492.99020167,0.00027765,2]
[426925784,1783019440000,-376.52,0.00027886,2]
[426925806,1783019440000,-500.0,0.00028299,14]
[426925783,1783019440000,-242.0,0.0002784,2]
[426925803,1783019440000,-200.0,0.00028234,2]
[426925801,1783019440000,-376.52,0.00028204,7]
[426925799,1783019440000,-2988.1,0.00028203,2]
[426925797,1783019440000,-155.13731977,0.00028078,120]
[426925793,1783019440000,-319.0,0.00028,2]
[426925786,1783019440000,-150.0,0.00027973,2]
[426925795,1783019440000,-376.52,0.00028045,30]
[426925789,1783019440000,-333.0,0.00028,2]
[426925788,1783019440000,-190.0,0.00028,2]
[426925785,1783019440000,-156.9,0.00027943,120]
[426925787,1783019440000,-173.0,0.00028,2]
[426925791,1783019440000,-286.0,0.00028,2]
[426925878,1783019441000,-223.0,0.00031038,2]
[426925883,1783019441000,-3305.62079256,0.00031111,2]
[426925881,1783019441000,-500.0,0.00031039,60]
[426925882,1783019441000,-170.58,0.00031068,2]
[426925877,1783019441000,-1362.0,0.00031038,2]
[426925873,1783019441000,-150.0,0.00031038,2]
[426925880,1783019441000,-177.61230857,0.00031039,5]
[426925875,1783019441000,-3566.0,0.00031038,2]
[426925879,1783019441000,-1231.0,0.00031038,2]
[426925874,1783019441000,-150.0,0.00031038,2]
[426925872,1783019441000,-150.0,0.00031038,2]
[426925876,1783019441000,-1278.0,0.00031038,2]
[426925884,1783019441000,-25342.58921637,0.00031111,2]
[426925903,1783019441000,-154.98233742,0.00032331,120]
[426925886,1783019441000,-165.70153142,0.00031359,2]
[426925885,1783019441000,-150.0,0.000313,2]
[426925890,1783019441000,-226.18,0.00031672,3]
[426925888,1783019441000,-9000.0,0.000316,5]
[426925892,1783019441000,-642.78,0.00031781,7]
[426925891,1783019441000,-653.58,0.00031781,30]
[426925889,1783019441000,-221.13085208,0.00031614,14]
[426925893,1783019441000,-160.26529082,0.00031999,2]
[426925894,1783019441000,-11397.494,0.00032,2]
[426925896,1783019441000,-453.0,0.0003204,3]
[426925895,1783019441000,-2126.45,0.00032,32]
[426925897,1783019441000,-502.0,0.00032083,16]
[426925871,1783019441000,-150.0,0.00031038,2]
[426925887,1783019441000,-271.0,0.00031399,30]
[426925870,1783019441000,-150.0,0.00031038,2]
[426925855,1783019441000,-165.70153142,0.00029512,2]
[426925868,1783019441000,-150.0,0.00031038,2]
[426925898,1783019441000,-702.0,0.00032102,5]
[426925839,1783019441000,-294.0,0.00029,2]
[426925843,1783019441000,-1000.0,0.00029119,10]
[426925841,1783019441000,-274.78192136,0.00029,2]
[426925842,1783019441000,-327.0,0.00029,2]
[426925840,1783019441000,-150.0,0.00029,10]
[426925844,1783019441000,-612.93854249,0.00029119,10]
[426925845,1783019441000,-486.56900621,0.00029119,30]
[426925846,1783019441000,-500.0,0.00029119,14]
[426925847,1783019441000,-600.0,0.00029119,3]
[426925850,1783019441000,-25342.58921637,0.00029224,2]
[426925851,1783019441000,-3652.0,0.00029342,2]
[426925853,1783019441000,-150.0,0.00029372,2]
[426925849,1783019441000,-3305.62079256,0.00029224,2]
[426925852,1783019441000,-6089.0,0.00029342,2]
[426925848,1783019441000,-500.0,0.00029119,60]
[426925856,1783019441000,-1507.75311397,0.00029602,30]
[426925854,1783019441000,-475.40889691,0.00029377,2]
[426925858,1783019441000,-1681.6552373,0.00030056,2]
[426925857,1783019441000,-155.10164761,0.00029652,2]
[426925859,1783019441000,-600.0,0.00030079,4]
[426925861,1783019441000,-242.64,0.00030137,2]
[426925860,1783019441000,-500.0,0.00030079,60]
[426925863,1783019441000,-152.0,0.0003028,4]
[426925865,1783019441000,-163.506,0.00030502,26]
[426925866,1783019441000,-186.15,0.00030833,120]
[426925862,1783019441000,-321.0,0.0003016,2]
[426925867,1783019441000,-150.0,0.00030841,2]
[426925864,1783019441000,-2900.782,0.00030502,26]
[426925869,1783019441000,-175.42,0.00031038,2]